bitfinex/quotes_SOLUSD_20241202
["timestamp","ask_amount","ask_price","bid_price","bid_amount"]
[1733152062262,0.31737231,225.79,225.67,0.88371672]
[1733152063171,0.31737231,225.79,225.68,20.72736155]
[1733152063567,0.31737231,225.79,225.61,38.96577655]
[1733152063568,24.09425631,225.79,225.64,20.72736155]
[1733152063978,20.0,225.76,225.66,20.72736155]
[1733152064860,20.0,225.72,225.61,0.5]
[1733152065075,0.31737231,225.71,225.61,0.5]
[1733152066267,20.0,225.72,225.63,20.72736155]
[1733152066471,0.31737231,225.74,225.65,20.72736155]
[1733152066669,0.31737231,225.74,225.61,0.5]
[1733152066670,20.0,225.72,225.61,0.5]
[1733152066858,0.31737231,225.71,225.61,0.5]
[1733152067561,0.12549,225.77,225.61,0.5]
[1733152067562,0.12549,225.77,225.65,20.72736155]
[1733152067767,24.09425631,225.78,225.65,20.72736155]
[1733152068288,5.0,225.88,225.67,20.72736155]
[1733152068486,0.31737231,225.82,225.67,20.72736155]
[1733152069090,0.31737231,225.82,225.65,20.72736155]
[1733152069268,0.12549,225.81,225.64,0.25098]
[1733152069465,20.0,225.8,225.65,20.72736155]
[1733152069662,0.31737231,225.79,225.65,20.72736155]
[1733152069976,0.31737231,225.79,225.64,0.25098]
[1733152069977,0.31737231,225.79,225.66,20.72736155]
[1733152070173,24.09425631,225.79,225.64,20.72736155]
[1733152070370,20.0,225.76,225.64,20.72736155]
[1733152070695,0.31737231,225.75,225.64,20.72736155]
[1733152071191,0.31737231,225.75,225.62,20.72736155]
[1733152071192,20.0,225.72,225.62,20.72736155]
[1733152071404,20.0,225.72,225.61,0.5]
[1733152071571,20.0,225.72,225.61,21.22736155]
[1733152073576,0.31737231,225.75,225.64,20.72736155]
[1733152073766,20.0,225.73,225.64,20.72736155]
[1733152074270,20.0,225.73,225.63,20.72736155]
[1733152074475,20.0,225.75,225.63,20.72736155]
[1733152075291,0.31737231,225.77,225.66,20.72736155]
[1733152075479,0.31737231,225.77,225.67,20.72736155]
[1733152075680,0.31737231,225.78,225.65,0.12549]
[1733152075885,0.31737231,225.78,225.63,20.72736155]
[1733152076089,20.31737231,225.78,225.62,20.85285155]
[1733152076892,44.09425631,225.78,225.63,20.72736155]
[1733152077998,44.09425631,225.78,225.64,20.72736155]
[1733152078375,0.31737231,225.78,225.67,20.72736155]
[1733152078573,24.09425631,225.82,225.67,20.72736155]
[1733152078772,0.25098,225.81,225.67,20.72736155]
[1733152079092,23.902374,225.81,225.65,20.72736155]
[1733152079399,0.31737231,225.8,225.66,0.12549]
[1733152079574,20.0,225.78,225.66,0.12549]
[1733152079773,0.31737231,225.77,225.65,0.12549]
[1733152079981,0.31737231,225.77,225.62,20.72736155]
[1733152080284,0.31737231,225.77,225.61,21.22736155]
[1733152080491,20.0,225.74,225.61,0.5]
[1733152080670,0.31737231,225.73,225.61,0.5]
[1733152080872,0.31737231,225.73,225.62,0.12549]
[1733152081074,20.31737231,225.8,225.68,20.72736155]
[1733152081284,0.31737231,225.8,225.69,20.72736155]
[1733152081482,0.31737231,225.82,225.71,20.72736155]
[1733152081683,21.3685,225.83,225.73,20.72736155]
[1733152081892,21.3685,225.83,225.74,20.85285155]
[1733152082095,0.31737231,225.82,225.7,20.72736155]
[1733152082999,20.0,225.8,225.7,20.72736155]
[1733152083370,0.31737231,225.79,225.67,20.72736155]
[1733152083576,0.31737231,225.79,225.66,20.85285155]
[1733152083794,0.12549,225.78,225.64,0.12549]
[1733152084106,20.0,225.76,225.62,20.72736155]
[1733152084292,0.31737231,225.75,225.63,20.72736155]
[1733152084478,0.31737231,225.75,225.64,20.72736155]
[1733152084671,0.31737231,225.75,225.63,20.72736155]
[1733152085072,0.31737231,225.75,225.64,20.72736155]
[1733152085590,0.31737231,225.75,225.65,20.72736155]
[1733152085883,0.31737231,225.75,225.64,20.72736155]
[1733152086981,20.0,225.71,225.62,0.12549]
[1733152087288,0.31737231,225.7,225.61,0.5]
[1733152088709,20.0,225.71,225.61,21.22736155]
[1733152088888,20.0,225.71,225.64,20.72736155]
[1733152089583,20.0,225.71,225.66,20.72736155]
[1733152089787,22.5877,225.74,225.66,20.72736155]
[1733152091001,23.776884,225.73,225.66,20.72736155]
[1733152091206,23.776884,225.73,225.64,0.8838004]
[1733152091907,23.776884,225.73,225.61,0.5]
[1733152091908,24.09425631,225.73,225.61,1.38379549]
[1733152092108,23.776884,225.73,225.61,1.38379549]
[1733152092494,24.09425631,225.73,225.61,1.38379549]
[1733152092693,23.776884,225.73,225.62,4.424]
[1733152092904,23.776884,225.73,225.61,1.38379549]
[1733152093326,23.776884,225.73,225.62,20.72736155]
[1733152093497,23.776884,225.73,225.66,20.72736155]
[1733152093796,23.776884,225.73,225.66,21.61105219]
[1733152094097,22.8822,225.79,225.68,25.15136155]
[1733152094309,22.8822,225.79,225.69,25.15136155]
[1733152094480,22.8822,225.79,225.69,4.424]
[1733152095313,22.8822,225.79,225.7,4.424]
[1733152095814,23.776884,225.78,225.7,4.424]
[1733152096307,16.4676,225.79,225.71,21.61091045]
[1733152096515,22.478,225.85,225.71,0.8835489]
[1733152096688,0.12549,225.84,225.71,21.61091045]
[1733152096889,0.12549,225.84,225.71,26.03491045]
[1733152097199,0.31737231,225.84,225.71,5.3075489]
[1733152097409,22.478,225.85,225.71,5.3075489]
[1733152097597,23.902374,225.84,225.71,5.3075489]
[1733152097801,23.902374,225.84,225.71,0.8835489]
[1733152098101,23.776884,225.8,225.69,20.72736155]
[1733152098300,23.776884,225.8,225.69,21.6108827]
[1733152098503,23.776884,225.8,225.7,4.424]
[1733152099011,23.776884,225.8,225.71,0.88352223]
[1733152099191,23.776884,225.8,225.72,4.424]
[1733152099512,23.776884,225.8,225.71,21.61088378]
[1733152099513,23.776884,225.8,225.73,0.88349152]
[1733152100016,23.776884,225.8,225.69,21.61081922]
[1733152100311,23.776884,225.8,225.69,0.88345767]
[1733152100515,23.776884,225.8,225.69,26.03481922]
[1733152100685,23.776884,225.8,225.7,0.12549]
[1733152100890,16.2015,225.85,225.75,20.72736155]
[1733152101085,6.2687,225.9,225.78,20.72736155]
[1733152101289,6.2687,225.9,225.8,20.72736155]
[1733152101513,6.2687,225.9,225.81,0.88308619]
[1733152102192,6.2687,225.9,225.81,21.61044774]
[1733152102393,15.6125,225.91,225.81,21.61044774]
[1733152102826,15.6125,225.91,225.83,20.72736155]
[1733152102993,15.6125,225.91,225.84,0.88302095]
[1733152103198,14.6125,225.91,225.84,0.88302095]
[1733152103812,23.776884,225.9,225.79,20.72736155]
[1733152104117,14.6125,225.91,225.81,20.72736155]
[1733152104321,6.4623,225.95,225.83,20.72736155]
[1733152104496,6.4623,225.95,225.84,0.88290482]
[1733152104699,6.4623,225.95,225.86,20.72736155]
[1733152104921,6.3129,226.04,225.91,20.72736155]
[1733152105299,6.3129,226.04,225.93,20.72736155]
[1733152105502,6.3129,226.04,225.94,0.88250671]
[1733152105720,6.3129,226.04,225.94,21.60986826]
[1733152107014,15.8345,226.07,225.94,21.60986826]
[1733152107226,20.0,226.04,225.94,21.60986826]
[1733152107926,20.0,226.04,225.94,0.88250671]
[1733152107927,23.776884,226.03,225.94,0.88250671]
[1733152108115,23.776884,226.03,225.95,0.88257286]
[1733152109698,23.776884,226.06,225.95,0.88257286]
[1733152110009,15.8345,226.07,225.99,20.72736155]
[1733152110218,15.8345,226.07,226.0,0.88233642]
[1733152110424,16.2871,226.12,226.0,0.88233642]
[1733152110713,16.2871,226.12,226.01,0.12549]
[1733152110918,16.2871,226.12,226.01,20.85285155]
[1733152111116,16.2871,226.12,226.02,0.88224155]
[1733152111624,16.2871,226.12,226.01,20.85285155]
[1733152112003,23.776884,226.11,225.98,40.72736155]
[1733152112204,24.09425631,226.11,225.97,20.72736155]
[1733152112417,23.776884,226.11,225.98,0.88242968]
[1733152113013,23.776884,226.11,225.99,0.12549]
[1733152113219,23.776884,226.11,226.0,0.88230233]
[1733152113426,23.776884,226.11,226.0,21.60966388]
[1733152113816,23.776884,226.11,226.01,0.12549]
[1733152115108,23.776884,226.11,226.02,20.72736155]
[1733152115310,15.7921548,226.18,226.05,20.72736155]
[1733152115629,15.7921548,226.18,226.09,20.72736155]
[1733152115832,15.7921548,226.18,226.11,20.72736155]
[1733152116000,0.0412548,226.18,226.13,20.72736155]
[1733152116206,0.0412548,226.18,226.14,20.72736155]
[1733152116414,0.0412548,226.18,226.15,21.60913722]
[1733152116622,0.0412548,226.18,226.15,0.88177567]
[1733152117702,0.0412548,226.18,226.16,0.88172153]
[1733152118116,0.0412548,226.18,226.16,21.60908308]
[1733152118315,0.0412548,226.18,226.16,0.88172153]
[1733152118830,0.0412548,226.18,226.13,0.12549]
[1733152119029,0.0412548,226.18,226.11,0.12549]
[1733152119214,0.0412548,226.18,226.08,14.15184592]
[1733152119431,0.0412548,226.18,226.08,0.88184592]
[1733152120839,23.776884,226.12,225.98,21.60973681]
[1733152121135,23.776884,226.12,225.99,20.72736155]
[1733152121336,23.776884,226.12,226.0,0.88234077]
[1733152121834,20.0,226.09,225.96,20.72736155]
[1733152122044,23.776884,226.08,225.95,4.424]
[1733152122209,23.776884,226.08,225.97,0.88247507]
[1733152123512,23.776884,226.06,225.92,4.424]
[1733152123907,23.776884,226.06,225.93,0.88258065]
[1733152124337,20.0,225.99,225.88,0.88254129]
[1733152124917,23.776884,225.98,225.85,21.61019277]
[1733152125218,24.09425631,225.98,225.85,0.88283122]
[1733152125424,23.776884,225.98,225.85,21.61019277]
[1733152125614,20.0,225.99,225.87,20.72736155]
[1733152125816,20.0,225.99,225.88,0.88273412]
[1733152126313,15.1601,226.02,225.88,0.88273412]
[1733152126314,23.776884,226.01,225.9,20.72736155]
[1733152126508,23.776884,226.01,225.91,0.88268675]
[1733152126909,23.776884,226.01,225.92,17.718313]
[1733152127331,23.776884,225.97,225.92,17.718313]
[1733152127539,24.09425631,225.97,225.82,21.61021938]
[1733152127718,24.09425631,225.97,225.82,0.88285783]
[1733152127924,20.0,225.94,225.79,27.22666155]
[1733152128230,20.0,225.94,225.91,17.722716]
[1733152128427,20.0,225.94,225.82,0.12549]
[1733152128742,30.236584,225.93,225.82,17.724757]
[1733152128912,20.0,225.9,225.82,17.724757]
[1733152129107,20.0,225.9,225.83,0.12549]
[1733152129329,20.0,225.9,225.82,17.724757]
[1733152130534,20.0,225.9,225.83,0.12549]
[1733152130722,30.236584,225.93,225.83,0.12549]
[1733152131116,20.0,225.9,225.83,0.12549]
[1733152131626,20.0,225.9,225.82,17.724757]
[1733152133047,15.6988,225.89,225.82,17.724757]
[1733152134045,16.01617231,225.89,225.82,17.724757]
[1733152134251,20.0,225.86,225.82,17.724757]
[1733152134612,20.0,225.86,225.69,26.1932]
[1733152134613,20.0,225.83,225.69,15.1163]
[1733152134833,0.12549,225.84,225.7,0.88346241]
[1733152135023,20.0,225.82,225.74,17.733025]
[1733152135541,0.31737231,225.81,225.74,17.733025]
[1733152135738,6.4275,225.81,225.74,17.733025]
[1733152136120,0.31737231,225.8,225.74,17.733025]
[1733152136330,6.4275,225.81,225.74,17.733025]
[1733152136635,6.4275,225.81,225.75,0.12549]
[1733152137539,6.1688,225.87,225.76,0.88343059]
[1733152137835,6.1688,225.87,225.77,0.12549]
[1733152138235,6.1688,225.87,225.79,0.12549]
[1733152138956,0.31737231,225.99,225.79,0.12549]
[1733152138957,6.5115,225.93,225.79,0.12549]
[1733152139120,6.5115,225.93,225.79,0.25098]
[1733152139426,6.5115,225.93,225.81,0.12549]
[1733152141859,6.5115,225.93,225.79,0.12549]
[1733152142651,20.0,225.86,225.71,20.72736155]
[1733152142856,20.0,225.86,225.74,24.95363141]
[1733152143057,20.0,225.86,225.75,0.25098]
[1733152143734,20.0,225.86,225.77,0.25098]
[1733152144332,20.0,225.86,225.78,0.12549]
[1733152144534,6.5115,225.93,225.8,0.12549]
[1733152144832,0.31737231,225.92,225.8,0.12549]
[1733152145956,0.31737231,225.92,225.78,0.12549]
[1733152146327,20.0,225.86,225.78,0.12549]
[1733152146961,6.5115,225.93,225.8,0.25098]
[1733152147263,20.0,225.9,225.82,0.25098]
[1733152147950,20.0,225.9,225.84,0.12549]
[1733152148362,15.4393,225.94,225.84,0.25098]
[1733152148739,15.4393,225.94,225.86,0.25098]
[1733152149062,6.1932,225.99,225.88,0.25098]
[1733152149063,21.6325,225.99,225.88,0.25098]
[1733152149357,21.6325,225.99,225.89,0.12549]
[1733152149358,15.4393,225.99,225.89,0.12549]
[1733152149561,15.4393,225.99,225.9,0.25098]
[1733152150037,15.4393,225.99,225.9,0.12549]
[1733152150748,6.5063,226.04,225.92,0.25098]
[1733152151151,20.0,226.01,225.92,0.25098]
[1733152151335,20.0,226.01,225.92,0.12549]
[1733152151737,20.0,226.01,225.94,0.12549]
[1733152151951,20.0,226.01,225.9,0.12549]
[1733152152137,0.31737231,226.0,225.9,0.12549]
[1733152152341,20.0,226.01,225.9,1.00832546]
[1733152153041,20.0,226.01,225.9,0.88283546]
[1733152153448,20.0,226.01,225.91,0.88271389]
[1733152153835,20.0,226.01,225.92,0.12549]
[1733152154042,20.0,226.01,225.93,0.88266441]
[1733152155652,20.0,226.01,225.91,0.25098]
[1733152155862,20.0,226.01,225.93,0.12549]
[1733152156062,20.0,226.01,225.92,0.88266036]
[1733152156063,20.0,226.01,225.9,0.12549]
[1733152156355,20.0,226.01,225.9,0.25098]
[1733152156737,20.0,226.01,225.92,0.12549]
[1733152157167,20.0,226.01,225.89,6.4041]
[1733152157373,20.0,226.01,225.9,0.88268289]
[1733152157857,20.0,226.01,225.91,0.12549]
[1733152158045,20.0,226.01,225.92,0.88268148]
[1733152158245,0.31737231,226.05,225.92,0.88268148]
[1733152158246,20.0,226.03,225.92,0.88268148]
[1733152158466,20.0,226.03,225.93,0.25098]
[1733152158771,20.0,226.03,225.94,0.88256452]
[1733152159462,20.0,226.03,225.95,0.12549]
[1733152159659,20.0,226.06,225.95,0.12549]
[1733152161045,20.0,226.06,225.94,0.88256452]
[1733152162142,0.31737231,226.05,225.94,0.88256452]
[1733152162349,20.0,226.06,225.92,0.25098]
[1733152162656,0.31737231,226.05,225.93,0.8826317]
[1733152162846,20.0,226.04,225.93,0.8826317]
[1733152165670,20.0,226.08,225.94,0.25098]
[1733152166740,0.31737231,226.07,225.94,0.25098]
[1733152166943,0.31737231,226.07,225.94,0.12549]
[1733152167247,0.31737231,226.07,225.91,4.424]
[1733152167248,0.31737231,226.07,225.92,0.25098]
[1733152167449,0.12549,226.06,225.92,0.25098]
[1733152167656,20.0,226.04,225.92,0.25098]
[1733152167972,20.0,226.04,225.92,0.88270902]
[1733152168468,0.12549,226.06,225.93,0.25098]
[1733152168664,24.09425631,226.1,225.95,0.12549]
[1733152168863,24.09425631,226.1,225.97,0.25098]
[1733152168864,0.31737231,226.1,225.97,0.25098]
[1733152169570,0.31737231,226.1,225.95,4.424]
[1733152169744,24.09425631,226.1,225.91,4.424]
[1733152169946,20.0,226.07,225.89,6.4041]
[1733152170172,24.09425631,226.06,225.89,6.4041]
[1733152170376,20.0,226.03,225.89,6.4041]
[1733152170671,0.31737231,226.02,225.9,5.30683035]
[1733152171047,20.0,226.03,225.91,0.12549]
[1733152171243,0.31737231,226.05,225.93,0.12549]
[1733152171449,0.31737231,226.07,225.93,0.12549]
[1733152172753,0.31737231,226.07,225.91,24.027864]
[1733152173365,0.31737231,226.07,225.93,0.12549]
[1733152173366,20.0,226.04,225.93,0.12549]
[1733152175476,20.0,226.04,225.95,0.12549]
[1733152175645,0.31737231,226.13,225.98,6.4498]
[1733152175853,18.4096839,226.17,225.99,1.00789665]
[1733152175854,0.31737231,226.16,225.99,1.00789665]
[1733152177058,20.0,226.14,225.99,1.00789665]
[1733152177253,0.31737231,226.13,225.99,1.00789665]
[1733152177472,0.31737231,226.13,226.0,0.12549]
[1733152177956,0.31737231,226.13,226.02,0.12549]
[1733152178486,20.0,226.15,226.02,0.12549]
[1733152178779,0.31737231,226.14,226.02,0.12549]
[1733152179980,0.0412548,226.18,226.04,0.25098]
[1733152180278,0.35862711,226.18,226.06,0.12549]
[1733152180589,0.0412548,226.18,226.06,0.12549]
[1733152180971,0.0412548,226.18,226.06,0.25098]
[1733152181883,0.0412548,226.18,226.08,0.12549]
[1733152182058,0.0412548,226.18,226.07,16.5505]
[1733152182883,20.0,226.16,226.07,16.5505]
[1733152183462,0.0412548,226.18,226.08,7.00465023]
[1733152183670,0.0412548,226.18,226.12,0.12549]
[1733152183862,0.0412548,226.18,226.12,1.00727299]
[1733152186466,0.0412548,226.18,226.13,12.93894599]
[1733152186783,0.0412548,226.18,226.14,0.88177105]
[1733152189678,0.0412548,226.18,226.14,14.15177105]
[1733152189992,0.0412548,226.18,226.15,0.12549]
[1733152190289,0.0412548,226.18,226.16,0.88168934]
[1733152190667,0.0412548,226.18,226.17,0.12549]
[1733152191398,0.0412548,226.18,226.16,0.12549]
[1733152192088,0.0412548,226.18,226.09,12.93894599]
[1733152192598,0.0412548,226.18,226.09,26.20894599]
[1733152192785,0.0412548,226.18,226.09,13.27]
[1733152192965,0.0412548,226.18,226.1,0.8819501]
[1733152193172,0.0412548,226.18,226.11,23.776884]
[1733152193372,0.0412548,226.18,226.1,0.8819501]
[1733152193373,0.0412548,226.18,226.1,23.776884]
[1733152194997,0.0412548,226.18,226.1,24.65881224]
[1733152195290,0.0412548,226.18,226.11,20.0]
[1733152195492,0.0412548,226.18,226.08,6.1225]
[1733152196497,0.12549,226.17,226.04,0.88208447]
[1733152196673,0.0412548,226.18,226.05,26.20894599]
[1733152196877,0.0412548,226.18,226.07,26.20894599]
[1733152197085,0.0412548,226.18,226.1,0.25098]
[1733152197286,0.0412548,226.18,226.11,0.88187424]
[1733152197489,0.0412548,226.18,226.13,23.776884]
[1733152197792,0.0412548,226.18,226.1,23.776884]
[1733152198169,0.0412548,226.18,226.09,23.776884]
[1733152198572,0.0412548,226.18,226.08,20.8819926]
[1733152198998,0.0412548,226.18,226.08,34.1519926]
[1733152199502,0.0412548,226.18,226.1,0.25098]
[1733152199678,0.0412548,226.18,226.12,23.776884]
[1733152200593,0.0412548,226.18,226.14,23.776884]
[1733152201100,0.0412548,226.18,226.16,23.776884]
[1733152201298,0.00314817,226.18,226.17,24.65856268]
[1733152201704,0.00314817,226.18,226.15,23.776884]
[1733152202077,0.00314817,226.18,226.14,23.776884]
[1733152202282,0.00314817,226.18,226.14,24.65876219]
[1733152202502,0.00314817,226.18,226.15,0.12549]
[1733152202689,0.00314817,226.18,226.17,23.776884]
[1733152204203,0.00314817,226.18,226.13,6.411]
[1733152204507,0.00314817,226.18,226.08,6.4752]
[1733152205084,0.00314817,226.18,226.07,0.88210115]
[1733152205478,20.00314817,226.18,226.07,0.88210115]
[1733152205681,20.00314817,226.18,226.03,7.38615571]
[1733152205888,17.96249204,226.18,226.04,0.12549]
[1733152206102,0.31737231,226.17,226.03,7.38615571]
[1733152206796,0.31737231,226.17,226.04,0.25098]
[1733152207180,0.31737231,226.17,226.04,0.12549]
[1733152207376,0.31737231,226.17,226.01,15.1176]
[1733152207581,0.31737231,226.17,226.02,0.88233777]
[1733152207781,15.9577,226.21,226.06,0.25098]
[1733152208092,15.9577,226.21,226.08,0.25098]
[1733152208293,15.9577,226.21,226.1,0.25098]
[1733152208484,15.9577,226.21,226.12,0.25098]
[1733152208686,15.9577,226.21,226.12,24.027864]
[1733152208901,22.4865,226.31,226.14,24.027864]
[1733152209087,0.31737231,226.3,226.14,24.027864]
[1733152209485,0.31737231,226.3,226.16,24.027864]
[1733152209684,0.31737231,226.3,226.16,0.25098]
[1733152210282,0.31737231,226.3,226.15,0.37647]
[1733152210482,0.31737231,226.3,226.15,1.25821976]
[1733152210685,0.31737231,226.3,226.17,0.12549]
[1733152211707,0.31737231,226.3,226.12,16.554]
[1733152211894,0.31737231,226.3,226.09,6.6104]
[1733152211895,20.0,226.28,226.09,6.6104]
[1733152212097,0.44286231,226.27,226.09,6.6104]
[1733152212392,0.44286231,226.27,226.07,16.53569817]
[1733152212393,20.0,226.24,226.05,11.0591]
[1733152212597,20.12549,226.22,226.03,7.39038404]
[1733152212815,0.31737231,226.21,226.03,7.39038404]
[1733152213107,0.31737231,226.21,226.03,20.32933003]
[1733152213581,6.4166,226.2,226.03,20.32933003]
[1733152213783,0.31737231,226.19,226.07,0.12549]
[1733152213984,15.5754,226.18,225.99,13.27]
[1733152214297,20.0,226.15,225.99,0.88231904]
[1733152214491,0.31737231,226.14,225.99,0.88231904]
[1733152214702,0.31737231,226.14,226.0,0.25098]
[1733152215203,0.31737231,226.14,225.99,0.88231904]
[1733152215420,0.31737231,226.14,226.01,0.12549]
[1733152215806,0.31737231,226.14,226.01,0.25098]
[1733152216211,0.31737231,226.14,225.98,0.88236354]
[1733152216404,0.31737231,226.14,226.01,12.93894599]
[1733152216603,15.5754,226.18,226.03,12.93894599]
[1733152216805,15.5754,226.18,226.05,0.25098]
[1733152217003,15.5754,226.18,226.07,0.25098]
[1733152217311,15.5754,226.18,226.09,0.25098]
[1733152217510,15.5754,226.18,226.11,24.027864]
[1733152217695,15.5754,226.18,226.11,23.776884]
[1733152217894,15.5754,226.18,226.1,23.776884]
[1733152218099,15.5754,226.18,226.08,23.902374]
[1733152218302,15.5754,226.18,226.1,23.776884]
[1733152218604,15.5754,226.18,226.08,24.153354]
[1733152218991,15.5754,226.18,226.08,23.776884]
[1733152219518,0.31737231,226.17,226.03,20.0]
[1733152219710,0.31737231,226.17,226.02,0.88213204]
[1733152220109,23.02296204,226.38,226.22,137.4]
[1733152220314,0.5412548,226.4,226.27,25.66574294]
[1733152220627,0.5412548,226.4,226.32,0.12549]
[1733152220628,1.01099776,226.39,226.32,0.12549]
[1733152220817,1.01099776,226.39,226.32,1.00661157]
[1733152221018,1.01099776,226.39,226.32,20.0]
[1733152221221,1.01099776,226.39,226.28,20.88113227]
[1733152221520,1.01099776,226.39,226.32,16.1111]
[1733152223215,1.01099776,226.39,226.28,20.88113227]
[1733152223429,1.01099776,226.39,226.29,16.1111]
[1733152226033,1.01099776,226.39,226.25,20.66574294]
[1733152226325,0.25098,226.38,226.27,17.691294]
[1733152226553,1.01099776,226.37,226.25,20.66574294]
[1733152226826,1.01099776,226.37,226.26,17.692108]
[1733152227215,1.01099776,226.37,226.27,20.66574294]
[1733152227613,0.5412548,226.4,226.27,20.66574294]
[1733152228618,0.5412548,226.4,226.29,20.66574294]
[1733152229708,0.5412548,226.4,226.27,20.66574294]
[1733152229906,20.5412548,226.4,226.27,20.66574294]
[1733152230525,0.5412548,226.4,226.29,20.66574294]
[1733152232005,0.5412548,226.4,226.33,20.66574294]
[1733152232209,0.5412548,226.4,226.3,0.88140743]
[1733152232210,0.5412548,226.4,226.37,20.66574294]
[1733152232938,0.5412548,226.4,226.38,0.12549]
[1733152233131,0.5412548,226.4,226.39,20.66574294]
[1733152233330,0.5412548,226.4,226.39,20.79123294]
[1733152234409,0.5412548,226.4,226.37,20.66574294]
[1733152234833,0.5412548,226.4,226.35,0.12549]
[1733152236414,0.5412548,226.4,226.33,23.902374]
[1733152236740,0.5412548,226.4,226.28,20.66574294]
[1733152236912,15.6639,226.39,226.26,38.35785094]
[1733152237112,0.5412548,226.4,226.37,20.66574294]
[1733152237423,0.5412548,226.4,226.39,20.79123294]
[1733152237837,0.5412548,226.4,226.39,0.12549]
[1733152238043,0.5412548,226.4,226.37,20.66574294]
[1733152238344,0.5412548,226.4,226.35,20.66574294]
[1733152238553,0.5412548,226.4,226.37,0.25098]
[1733152238729,0.5412548,226.4,226.38,23.776884]
[1733152239228,0.5412548,226.4,226.39,0.12549]
[1733152240216,0.5412548,226.4,226.34,23.902374]
[1733152240423,0.5412548,226.4,226.34,0.12549]
[1733152241741,0.5412548,226.4,226.34,0.25098]
[1733152241957,0.5412548,226.4,226.36,0.12549]
[1733152242145,0.5412548,226.4,226.36,24.027864]
[1733152242325,0.5412548,226.4,226.38,24.027864]
[1733152242524,0.5412548,226.4,226.39,20.91672294]
[1733152242731,0.5412548,226.4,226.39,44.81909694]
[1733152243838,0.5412548,226.4,226.39,0.37647]
[1733152244019,0.5412548,226.4,226.39,0.12549]
[1733152244224,0.5412548,226.4,226.31,20.79123294]
[1733152244638,0.5412548,226.4,226.32,0.12549]
[1733152244836,0.5412548,226.4,226.31,20.66574294]
[1733152245955,0.5412548,226.4,226.29,21.54698827]
[1733152246245,15.8052,226.39,226.26,17.692108]
[1733152246831,15.8052,226.39,226.27,0.25098]
[1733152247526,15.8052,226.39,226.27,1.00689172]
[1733152247748,15.8052,226.39,226.28,23.902374]
[1733152249954,15.8052,226.39,226.29,0.12549]
[1733152250145,15.8052,226.39,226.34,0.12549]
[1733152250331,0.5412548,226.4,226.36,0.25098]
[1733152250530,0.5412548,226.4,226.37,0.12549]
[1733152250829,0.5412548,226.4,226.38,0.12549]
[1733152251243,0.5412548,226.4,226.38,1.00650889]
[1733152251553,0.5412548,226.4,226.39,24.027864]
[1733152251844,0.5412548,226.4,226.39,0.12549]
[1733152252861,0.5412548,226.4,226.37,0.12549]
[1733152253042,0.5412548,226.4,226.39,0.12549]
[1733152254235,0.5412548,226.4,226.38,0.12549]
[1733152255248,0.5412548,226.4,226.33,21.54686502]
[1733152255443,0.5412548,226.4,226.35,20.0]
[1733152255654,0.5412548,226.4,226.33,0.88112208]
[1733152256338,0.5412548,226.4,226.33,0.25098]
[1733152256759,0.5412548,226.4,226.34,0.12549]
[1733152257174,0.5412548,226.4,226.34,23.902374]
[1733152257665,0.5412548,226.4,226.36,0.12549]
[1733152257841,0.5412548,226.4,226.35,0.12549]
[1733152259244,0.5412548,226.4,226.36,0.12549]
[1733152259854,0.5412548,226.4,226.36,23.902374]
[1733152260039,0.5412548,226.4,226.36,0.12549]
[1733152261166,0.5412548,226.4,226.34,23.902374]
[1733152261359,0.5412548,226.4,226.35,0.12549]
[1733152261745,0.5412548,226.4,226.37,0.25098]
[1733152261944,0.5412548,226.4,226.38,23.902374]
[1733152262163,0.5412548,226.4,226.39,25.03428482]
[1733152262544,0.17469986,226.4,226.39,25.03428482]
[1733152263561,0.17469986,226.4,226.39,29.45828482]
[1733152268657,0.05668686,226.4,226.39,29.45828482]
[1733152270843,0.05668686,226.4,226.39,29.33279482]
[1733152271044,0.05668686,226.4,226.39,5.30493082]
[1733152271470,0.05668686,226.4,226.39,5.43042082]
[1733152271671,8.686e-05,226.4,226.39,5.43042082]
[1733152271978,16.2146,226.56,226.42,0.25098]
[1733152272200,16.2146,226.56,226.47,0.25098]
[1733152272470,16.2146,226.56,226.5,23.902374]
[1733152272771,16.2146,226.56,226.51,0.12549]